[Event "*** Titled Tuesday Blitz"]
[Site "Chess.com"]
[Date "2020.04.28"]
[Round "4"]
[White "Konek-Gorbunok"]
[Black "Munkhzul_Turmunkh"]
[Result "0-1"]
[WhiteElo "2320"]
[BlackElo "2508"]
[TimeControl "180+1"]
[EndTime "10:40:35 PDT"]
[Termination "Munkhzul_Turmunkh won by resignation"]

1. d4 {[%clk 0:02:50.3]} 1... Nf6 {[%clk 0:02:59.3]} 2. Nf3 {[%clk 0:02:50.7]}
2... e6 {[%clk 0:02:59.2]} 3. g3 {[%clk 0:02:50.7]} 3... d5 {[%clk 0:02:59.2]}
4. Bg2 {[%clk 0:02:51]} 4... Be7 {[%clk 0:02:59.4]} 5. O-O {[%clk 0:02:51.5]}
5... O-O {[%clk 0:03:00]} 6. c4 {[%clk 0:02:50.8]} 6... dxc4 {[%clk 0:03:00.9]}
7. Ne5 {[%clk 0:02:50.3]} 7... Nc6 {[%clk 0:03:00.2]} 8. Bxc6 {[%clk 0:02:50.4]}
8... bxc6 {[%clk 0:03:01.1]} 9. Nxc6 {[%clk 0:02:51.2]} 9... Qe8 {[%clk
0:03:00.7]} 10. Nxe7+ {[%clk 0:02:52.1]} 10... Qxe7 {[%clk 0:03:01.6]} 11. Qa4
{[%clk 0:02:52.6]} 11... e5 {[%clk 0:03:01.2]} 12. dxe5 {[%clk 0:02:51.1]} 12...
Qxe5 {[%clk 0:03:02.1]} 13. Qxc4 {[%clk 0:02:51.1]} 13... Be6 {[%clk 0:03:00.1]}
14. Qf4 {[%clk 0:02:40.8]} 14... Qxe2 {[%clk 0:02:53.6]} 15. Nc3 {[%clk
0:02:39.1]} 15... Qh5 {[%clk 0:02:34.1]} 16. h4 {[%clk 0:02:22]} 16... Rad8
{[%clk 0:02:16.1]} 17. Qg5 {[%clk 0:01:53.2]} 17... Qf3 {[%clk 0:02:11.6]} 18.
Qf4 {[%clk 0:01:53]} 18... Qc6 {[%clk 0:02:09]} 19. Be3 {[%clk 0:01:31]} 19...
Bh3 {[%clk 0:02:07.8]} 20. f3 {[%clk 0:01:23.2]} 20... Bxf1 {[%clk 0:02:07.7]}
21. Rxf1 {[%clk 0:01:20.9]} 21... Nd5 {[%clk 0:02:00.1]} 22. Nxd5 {[%clk
0:01:19.8]} 22... Qxd5 {[%clk 0:01:58.3]} 23. Qxc7 {[%clk 0:01:08.9]} 23... Rd7
{[%clk 0:01:37]} 24. Qc5 {[%clk 0:00:51.3]} 24... Qe6 {[%clk 0:01:12.8]} 25. b3
{[%clk 0:00:26.2]} 25... Re8 {[%clk 0:01:09.8]} 26. Bf2 {[%clk 0:00:24.9]} 26...
Qf6 {[%clk 0:01:01.2]} 27. Kg2 {[%clk 0:00:21.7]} 27... h6 {[%clk 0:01:00.6]}
28. Re1 {[%clk 0:00:14.1]} 28... Red8 {[%clk 0:00:55.8]} 29. Qe5 {[%clk
0:00:12]} 29... Qg6 {[%clk 0:00:50.5]} 30. Qe4 {[%clk 0:00:10.9]} 30... Qa6
{[%clk 0:00:48.1]} 31. Re2 {[%clk 0:00:10.4]} 31... Qb5 {[%clk 0:00:44.9]} 32.
Rc2 {[%clk 0:00:08.4]} 32... a6 {[%clk 0:00:41.3]} 33. Qe2 {[%clk 0:00:08.5]}
33... Qb7 {[%clk 0:00:37.6]} 34. Qe4 {[%clk 0:00:06.2]} 34... Qxe4 {[%clk
0:00:31.1]} 35. fxe4 {[%clk 0:00:07.1]} 35... Rd2 {[%clk 0:00:31.7]} 36. Rxd2
{[%clk 0:00:04.2]} 36... Rxd2 {[%clk 0:00:32.6]} 37. a3 {[%clk 0:00:04.7]} 37...
Rd3 {[%clk 0:00:32.8]} 38. b4 {[%clk 0:00:03.7]} 38... Rxa3 {[%clk 0:00:32.6]}
39. Bc5 {[%clk 0:00:04]} 39... f6 {[%clk 0:00:32.5]} 0-1

[Event "*** Titled Tuesday Blitz"]
[Site "Chess.com"]
[Date "2020.04.28"]
[Round "4"]
[White "AleksanderHnydiuk"]
[Black "1f3_2g41-0"]
[Result "1-0"]
[WhiteElo "2575"]
[BlackElo "2215"]
[TimeControl "180+1"]
[EndTime "10:40:36 PDT"]
[Termination "AleksanderHnydiuk won on time"]

1. d4 {[%clk 0:03:00.9]} 1... Nf6 {[%clk 0:02:59.5]} 2. c4 {[%clk 0:03:01]} 2...
g6 {[%clk 0:02:59.5]} 3. g3 {[%clk 0:03:00.5]} 3... e6 {[%clk 0:02:58]} 4. Bg2
{[%clk 0:02:59.8]} 4... d5 {[%clk 0:02:58]} 5. Nf3 {[%clk 0:02:59.7]} 5... Bg7
{[%clk 0:02:57.9]} 6. O-O {[%clk 0:02:59.6]} 6... O-O {[%clk 0:02:58.5]} 7. Qc2
{[%clk 0:02:58.8]} 7... Nc6 {[%clk 0:02:57.2]} 8. Rd1 {[%clk 0:02:57.1]} 8... a5
{[%clk 0:02:57]} 9. Bf4 {[%clk 0:02:51.1]} 9... Nb4 {[%clk 0:02:44.7]} 10. Qc1
{[%clk 0:02:49.4]} 10... dxc4 {[%clk 0:02:38.8]} 11. Qxc4 {[%clk 0:02:45.4]}
11... Nfd5 {[%clk 0:02:37.3]} 12. Bg5 {[%clk 0:02:41.2]} 12... f6 {[%clk
0:02:27.8]} 13. Bd2 {[%clk 0:02:40.6]} 13... b5 {[%clk 0:02:19.5]} 14. Qc1
{[%clk 0:02:37.2]} 14... Bb7 {[%clk 0:02:14.3]} 15. a3 {[%clk 0:02:32.5]} 15...
Nc6 {[%clk 0:02:10.7]} 16. e4 {[%clk 0:02:32.5]} 16... Nb6 {[%clk 0:02:10.7]}
17. Bh6 {[%clk 0:02:25.2]} 17... Bxh6 {[%clk 0:01:35.2]} 18. Qxh6 {[%clk
0:02:26.1]} 18... Rf7 {[%clk 0:01:33.6]} 19. Nc3 {[%clk 0:02:23.9]} 19... b4
{[%clk 0:01:32.6]} 20. axb4 {[%clk 0:02:22.1]} 20... axb4 {[%clk 0:01:32.1]} 21.
Ne2 {[%clk 0:02:13.9]} 21... Rxa1 {[%clk 0:01:05.1]} 22. Rxa1 {[%clk 0:02:13.3]}
22... Qd6 {[%clk 0:01:04.9]} 23. Qe3 {[%clk 0:01:42]} 23... Nc4 {[%clk
0:00:55.4]} 24. Qb3 {[%clk 0:01:40.1]} 24... N6a5 {[%clk 0:00:54.1]} 25. Qc2
{[%clk 0:01:21.6]} 25... b3 {[%clk 0:00:52.2]} 26. Qc3 {[%clk 0:01:20.7]} 26...
Qb6 {[%clk 0:00:36.5]} 27. Nd2 {[%clk 0:01:19.3]} 27... Nxd2 {[%clk 0:00:35]}
28. Qxd2 {[%clk 0:01:20.2]} 28... Nc4 {[%clk 0:00:31.6]} 29. Qc3 {[%clk
0:01:19.9]} 29... Nd6 {[%clk 0:00:31.3]} 30. e5 {[%clk 0:00:58.2]} 30... fxe5
{[%clk 0:00:30.1]} 31. Bxb7 {[%clk 0:00:56.5]} 31... Nxb7 {[%clk 0:00:29.8]} 32.
Ra8+ {[%clk 0:00:50.2]} 32... Kg7 {[%clk 0:00:29.2]} 33. Qe3 {[%clk 0:00:43.6]}
33... Qd6 {[%clk 0:00:18.2]} 34. Qxb3 {[%clk 0:00:35.5]} 34... exd4 {[%clk
0:00:12.8]} 35. Qxb7 {[%clk 0:00:31.9]} 35... d3 {[%clk 0:00:13]} 36. Nc3 {[%clk
0:00:31.7]} 36... d2 {[%clk 0:00:11.6]} 37. Ra1 {[%clk 0:00:30]} 37... Qd4
{[%clk 0:00:03.1]} 38. Qg2 {[%clk 0:00:28.9]} 38... c5 {[%clk 0:00:02.4]} 39.
Rd1 {[%clk 0:00:27.5]} 39... Rd7 {[%clk 0:00:01.4]} 40. Qf1 {[%clk 0:00:25.3]}
40... Qb4 {[%clk 0:00:01.3]} 41. Qe2 {[%clk 0:00:21.9]} 41... Qxb2 {[%clk
0:00:01.4]} 42. Ne4 {[%clk 0:00:20.6]} 1-0

[Event "*** Titled Tuesday Blitz"]
[Site "Chess.com"]
[Date "2020.04.28"]
[Round "4"]
[White "Camels1981"]
[Black "Mourinho_Jose"]
[Result "1-0"]
[WhiteElo "2218"]
[BlackElo "2556"]
[TimeControl "180+1"]
[EndTime "10:40:36 PDT"]
[Termination "Camels1981 won by checkmate"]

1. e4 {[%clk 0:03:00.9]} 1... c6 {[%clk 0:02:56.9]} 2. d4 {[%clk 0:02:59.8]}
2... d5 {[%clk 0:02:57.4]} 3. exd5 {[%clk 0:03:00]} 3... cxd5 {[%clk 0:02:57.4]}
4. c4 {[%clk 0:03:00.5]} 4... Nf6 {[%clk 0:02:54.4]} 5. Nc3 {[%clk 0:03:00.9]}
5... g6 {[%clk 0:02:52]} 6. Qb3 {[%clk 0:02:58.8]} 6... Bg7 {[%clk 0:02:46.7]}
7. cxd5 {[%clk 0:02:58.9]} 7... O-O {[%clk 0:02:46.6]} 8. Be2 {[%clk 0:02:59.5]}
8... a6 {[%clk 0:02:46.4]} 9. Bf3 {[%clk 0:02:59.5]} 9... Nbd7 {[%clk
0:02:40.1]} 10. Nge2 {[%clk 0:02:59.4]} 10... Nb6 {[%clk 0:02:39.9]} 11. Nf4
{[%clk 0:02:58.7]} 11... Bg4 {[%clk 0:02:37.5]} 12. Bxg4 {[%clk 0:02:56.3]}
12... Nxg4 {[%clk 0:02:38.4]} 13. O-O {[%clk 0:02:52.6]} 13... Bxd4 {[%clk
0:02:27.9]} 14. h3 {[%clk 0:02:51.9]} 14... Nf6 {[%clk 0:02:14.9]} 15. Rd1
{[%clk 0:02:51]} 15... Be5 {[%clk 0:02:07.4]} 16. a4 {[%clk 0:02:50.5]} 16...
Rb8 {[%clk 0:02:00.4]} 17. a5 {[%clk 0:02:50.4]} 17... Nbd7 {[%clk 0:02:00.9]}
18. Nd3 {[%clk 0:02:48.7]} 18... Bd6 {[%clk 0:02:01.2]} 19. Bh6 {[%clk
0:02:47.8]} 19... Re8 {[%clk 0:02:01.8]} 20. Rac1 {[%clk 0:02:43.1]} 20... Qxa5
{[%clk 0:01:55.1]} 21. Qc4 {[%clk 0:02:16.7]} 21... Ne5 {[%clk 0:01:50.6]} 22.
Qh4 {[%clk 0:02:12.6]} 22... Nxd3 {[%clk 0:01:46.4]} 23. Rxd3 {[%clk 0:02:12.1]}
23... Qb4 {[%clk 0:01:47.3]} 24. Rd4 {[%clk 0:01:56.9]} 24... Qxb2 {[%clk
0:01:45.9]} 25. Nd1 {[%clk 0:01:54.2]} 25... Qa3 {[%clk 0:01:35.1]} 26. Rc3
{[%clk 0:01:45.9]} 26... Qa1 {[%clk 0:01:32.9]} 27. Rf3 {[%clk 0:01:45.1]} 27...
Be5 {[%clk 0:01:16.4]} 28. Rdd3 {[%clk 0:01:39.5]} 28... Rbd8 {[%clk 0:01:03.3]}
29. Qc4 {[%clk 0:01:19.1]} 29... Nxd5 {[%clk 0:00:42.2]} 30. g3 {[%clk
0:01:04.7]} 30... Nf6 {[%clk 0:00:39.5]} 31. Kg2 {[%clk 0:01:03.6]} 31... Rxd3
{[%clk 0:00:37.4]} 32. Rxd3 {[%clk 0:01:03.6]} 32... Qa5 {[%clk 0:00:30.9]} 33.
Ne3 {[%clk 0:01:02.9]} 33... Qc7 {[%clk 0:00:30.8]} 34. Qb3 {[%clk 0:00:58]}
34... Qc6+ {[%clk 0:00:30.8]} 35. Kg1 {[%clk 0:00:57.1]} 35... Ne4 {[%clk
0:00:26.5]} 36. Nd5 {[%clk 0:00:53.3]} 36... Nc5 {[%clk 0:00:23.4]} 37. Nxe7+
{[%clk 0:00:33.1]} 37... Rxe7 {[%clk 0:00:23]} 38. Rd8+ {[%clk 0:00:32.3]} 38...
Re8 {[%clk 0:00:23.4]} 39. Qd5 {[%clk 0:00:32.8]} 39... Qb5 {[%clk 0:00:08.6]}
40. Qxe5 {[%clk 0:00:31.5]} 40... Qb1+ {[%clk 0:00:04.7]} 41. Kh2 {[%clk
0:00:29.8]} 41... f6 {[%clk 0:00:01.4]} 42. Qxe8# {[%clk 0:00:28.2]} 1-0

[Event "*** Titled Tuesday Blitz"]
[Site "Chess.com"]
[Date "2020.04.28"]
[Round "4"]
[White "jucAxx"]
[Black "LimeInTheCoconut"]
[Result "1-0"]
[WhiteElo "2121"]
[BlackElo "2385"]
[TimeControl "180+1"]
[EndTime "10:40:36 PDT"]
[Termination "jucAxx won on time"]

1. e4 {[%clk 0:03:00.9]} 1... c6 {[%clk 0:02:59.6]} 2. d4 {[%clk 0:02:59.9]}
2... d5 {[%clk 0:02:59.8]} 3. f3 {[%clk 0:03:00]} 3... Qb6 {[%clk 0:02:58.5]} 4.
Nc3 {[%clk 0:02:59.7]} 4... dxe4 {[%clk 0:02:55.2]} 5. fxe4 {[%clk 0:02:58.5]}
5... e5 {[%clk 0:02:54.8]} 6. Nf3 {[%clk 0:02:58.5]} 6... exd4 {[%clk 0:02:53]}
7. Nxd4 {[%clk 0:02:15.4]} 7... Nf6 {[%clk 0:02:52]} 8. e5 {[%clk 0:02:11.4]}
8... Ng4 {[%clk 0:02:49.2]} 9. Be2 {[%clk 0:02:09.4]} 9... Nxe5 {[%clk 0:02:38]}
10. O-O {[%clk 0:02:07.4]} 10... Be7 {[%clk 0:02:15.4]} 11. a3 {[%clk
0:02:01.5]} 11... O-O {[%clk 0:02:13.6]} 12. Na4 {[%clk 0:02:01.7]} 12... Qc7
{[%clk 0:02:12.7]} 13. Bf4 {[%clk 0:01:59.7]} 13... Nbd7 {[%clk 0:02:05.9]} 14.
Nf5 {[%clk 0:01:56.2]} 14... Bf6 {[%clk 0:02:05.2]} 15. Be3 {[%clk 0:01:51.3]}
15... b5 {[%clk 0:01:56]} 16. Nc3 {[%clk 0:01:50.6]} 16... Bb7 {[%clk
0:00:55.3]} 17. Ne4 {[%clk 0:01:31.8]} 17... Bd8 {[%clk 0:00:54.4]} 18. Qe1
{[%clk 0:01:22]} 18... c5 {[%clk 0:00:45.9]} 19. Ned6 {[%clk 0:01:20.3]} 19...
a6 {[%clk 0:00:37.2]} 20. Qg3 {[%clk 0:01:20.3]} 20... Ng6 {[%clk 0:00:32.9]}
21. Nxb7 {[%clk 0:01:16.2]} 21... Qxb7 {[%clk 0:00:33]} 22. Bf3 {[%clk
0:01:16.9]} 22... Qa7 {[%clk 0:00:32.5]} 23. Bxa8 {[%clk 0:01:07.9]} 23... Qxa8
{[%clk 0:00:33.4]} 24. Qd6 {[%clk 0:01:08.2]} 24... Qc8 {[%clk 0:00:24.3]} 25.
Rad1 {[%clk 0:01:05.5]} 25... Nge5 {[%clk 0:00:04.8]} 26. Bf4 {[%clk 0:00:48.3]}
26... Bc7 {[%clk 0:00:04.4]} 27. Qd2 {[%clk 0:00:46.7]} 27... Re8 {[%clk
0:00:02.8]} 28. Nd6 {[%clk 0:00:43.8]} 28... Bxd6 {[%clk 0:00:02.5]} 29. Qxd6
{[%clk 0:00:44.7]} 29... f6 {[%clk 0:00:01.8]} 30. Bxe5 {[%clk 0:00:41.1]} 30...
Nxe5 {[%clk 0:00:01.9]} 31. h3 {[%clk 0:00:21.6]} 31... Kh8 {[%clk 0:00:02.4]}
32. Rd5 {[%clk 0:00:19]} 32... c4 {[%clk 0:00:02.8]} 33. Rc5 {[%clk 0:00:17.2]}
33... Qa8 {[%clk 0:00:03.2]} 34. Rc7 {[%clk 0:00:16.4]} 34... Rd8 {[%clk
0:00:03.6]} 35. Qe7 {[%clk 0:00:15.9]} 35... Rg8 {[%clk 0:00:04.5]} 36. Rxf6
{[%clk 0:00:13]} 36... Qf8 {[%clk 0:00:04.7]} 37. Rxf8 {[%clk 0:00:13.1]} 1-0

[Event "*** Titled Tuesday Blitz"]
[Site "Chess.com"]
[Date "2020.04.28"]
[Round "4"]
[White "LucaBrasi1968"]
[Black "Berardino"]
[Result "0-1"]
[WhiteElo "2474"]
[BlackElo "2672"]
[TimeControl "180+1"]
[EndTime "10:40:38 PDT"]
[Termination "Berardino won by resignation"]

1. d4 {[%clk 0:03:00.9]} 1... d5 {[%clk 0:02:53.2]} 2. c4 {[%clk 0:02:59.5]}
2... e6 {[%clk 0:02:53.2]} 3. Nc3 {[%clk 0:02:53.5]} 3... Be7 {[%clk 0:02:51.9]}
4. cxd5 {[%clk 0:02:46.4]} 4... exd5 {[%clk 0:02:52.8]} 5. Nf3 {[%clk
0:02:46.6]} 5... Nf6 {[%clk 0:02:51.4]} 6. Bf4 {[%clk 0:02:38.3]} 6... O-O
{[%clk 0:02:45.3]} 7. e3 {[%clk 0:02:38]} 7... c5 {[%clk 0:02:44.3]} 8. dxc5
{[%clk 0:02:34]} 8... Bxc5 {[%clk 0:02:36.3]} 9. Be2 {[%clk 0:02:33.7]} 9... Nc6
{[%clk 0:02:35.5]} 10. O-O {[%clk 0:02:29.1]} 10... Bg4 {[%clk 0:02:16.6]} 11.
h3 {[%clk 0:02:26.1]} 11... Bh5 {[%clk 0:02:10.2]} 12. Rc1 {[%clk 0:02:20.1]}
12... Bb6 {[%clk 0:02:01.1]} 13. Na4 {[%clk 0:01:55]} 13... Ne4 {[%clk
0:01:56.1]} 14. Nxb6 {[%clk 0:01:53.8]} 14... axb6 {[%clk 0:01:53.3]} 15. a3
{[%clk 0:01:50.4]} 15... Re8 {[%clk 0:01:31.4]} 16. Nd4 {[%clk 0:01:49.6]} 16...
Bxe2 {[%clk 0:01:29.5]} 17. Nxe2 {[%clk 0:01:49.1]} 17... Qf6 {[%clk 0:01:21.3]}
18. Nd4 {[%clk 0:01:29]} 18... Nxd4 {[%clk 0:01:20.9]} 19. Qxd4 {[%clk
0:01:28.4]} 19... Qxd4 {[%clk 0:01:20.7]} 20. exd4 {[%clk 0:01:28.9]} 20... Rac8
{[%clk 0:01:18.5]} 21. Rfe1 {[%clk 0:01:14.3]} 21... g5 {[%clk 0:01:03.3]} 22.
Bc7 {[%clk 0:00:42.9]} 22... b5 {[%clk 0:00:50.4]} 23. f3 {[%clk 0:00:35.1]}
23... Nd2 {[%clk 0:00:48]} 24. Rxe8+ {[%clk 0:00:28.7]} 24... Rxe8 {[%clk
0:00:47.7]} 25. Be5 {[%clk 0:00:26.2]} 25... Nc4 {[%clk 0:00:44]} 26. Bf6 {[%clk
0:00:20.7]} 26... h6 {[%clk 0:00:43.7]} 27. b3 {[%clk 0:00:19.2]} 27... Nxa3
{[%clk 0:00:36.7]} 28. Rc5 {[%clk 0:00:19.2]} 28... Re6 {[%clk 0:00:30.5]} 29.
Be5 {[%clk 0:00:14.3]} 29... f6 {[%clk 0:00:28.6]} 30. Bg3 {[%clk 0:00:14.4]}
30... Re3 {[%clk 0:00:24.1]} 31. Rxd5 {[%clk 0:00:13.7]} 31... Rxb3 {[%clk
0:00:24.1]} 32. Rd7 {[%clk 0:00:12.1]} 32... b6 {[%clk 0:00:22.4]} 33. Rb7
{[%clk 0:00:11]} 33... Nc4 {[%clk 0:00:22.4]} 34. Bc7 {[%clk 0:00:11.2]} 34...
Rb1+ {[%clk 0:00:18.1]} 35. Kh2 {[%clk 0:00:10.9]} 35... b4 {[%clk 0:00:12.3]}
36. Bxb6 {[%clk 0:00:10.9]} 36... b3 {[%clk 0:00:12.8]} 37. Bc5 {[%clk 0:00:11]}
37... b2 {[%clk 0:00:12.6]} 38. d5 {[%clk 0:00:06.5]} 38... Rd1 {[%clk 0:00:12]}
39. d6 {[%clk 0:00:06.7]} 39... b1=Q {[%clk 0:00:12.2]} 0-1

[Event "*** Titled Tuesday Blitz"]
[Site "Chess.com"]
[Date "2020.04.28"]
[Round "4"]
[White "Omk124"]
[Black "Paladin61"]
[Result "0-1"]
[WhiteElo "2350"]
[BlackElo "2582"]
[TimeControl "180+1"]
[EndTime "10:40:38 PDT"]
[Termination "Paladin61 won by checkmate"]

1. e4 {[%clk 0:03:00.9]} 1... c5 {[%clk 0:02:58.3]} 2. Nf3 {[%clk 0:03:00.8]}
2... d6 {[%clk 0:02:58.4]} 3. d4 {[%clk 0:02:58.2]} 3... cxd4 {[%clk 0:02:59.3]}
4. Nxd4 {[%clk 0:02:58.3]} 4... Nf6 {[%clk 0:02:59.8]} 5. Nc3 {[%clk 0:02:58.9]}
5... a6 {[%clk 0:02:59.6]} 6. g3 {[%clk 0:02:59.3]} 6... e5 {[%clk 0:02:58.2]}
7. Nde2 {[%clk 0:02:59.6]} 7... Be7 {[%clk 0:02:55.7]} 8. a4 {[%clk 0:02:59.5]}
8... Nc6 {[%clk 0:02:52.8]} 9. Bg2 {[%clk 0:02:57.5]} 9... Nb4 {[%clk
0:02:51.5]} 10. h3 {[%clk 0:02:52.4]} 10... Be6 {[%clk 0:02:49.8]} 11. g4 {[%clk
0:02:35.1]} 11... d5 {[%clk 0:02:48.9]} 12. g5 {[%clk 0:02:28.8]} 12... Nxe4
{[%clk 0:02:45.9]} 13. Nxe4 {[%clk 0:02:11.6]} 13... dxe4 {[%clk 0:02:45.2]} 14.
Qxd8+ {[%clk 0:02:12.3]} 14... Rxd8 {[%clk 0:02:44.6]} 15. Bxe4 {[%clk
0:02:12.9]} 15... Bd5 {[%clk 0:02:40.9]} 16. Bxd5 {[%clk 0:01:52.1]} 16... Nxc2+
{[%clk 0:02:30.6]} 17. Kf1 {[%clk 0:01:41.1]} 17... Rxd5 {[%clk 0:01:45]} 18.
Rb1 {[%clk 0:01:37.4]} 18... Rd1+ {[%clk 0:01:30.7]} 19. Kg2 {[%clk 0:01:37.1]}
19... Rxh1 {[%clk 0:01:28.6]} 20. Kxh1 {[%clk 0:01:37.1]} 20... Kd7 {[%clk
0:01:27.5]} 21. Bd2 {[%clk 0:01:36.7]} 21... Rc8 {[%clk 0:01:20.8]} 22. Rd1
{[%clk 0:01:30.3]} 22... Ke6 {[%clk 0:01:19.6]} 23. Bc3 {[%clk 0:01:26]} 23...
Bxg5 {[%clk 0:01:14.2]} 24. Kg2 {[%clk 0:01:21.5]} 24... b5 {[%clk 0:01:09.9]}
25. axb5 {[%clk 0:01:16.7]} 25... axb5 {[%clk 0:01:10.5]} 26. Bd2 {[%clk
0:00:37]} 26... Rd8 {[%clk 0:01:05.5]} 27. f4 {[%clk 0:00:28.7]} 27... Ne3+
{[%clk 0:01:05.4]} 28. Bxe3 {[%clk 0:00:27.5]} 28... Rxd1 {[%clk 0:01:03.5]} 29.
fxg5 {[%clk 0:00:27.9]} 29... Rb1 {[%clk 0:01:02.4]} 30. Kf3 {[%clk 0:00:25.9]}
30... Rxb2 {[%clk 0:01:01.7]} 31. h4 {[%clk 0:00:25.1]} 31... b4 {[%clk
0:01:00.3]} 32. h5 {[%clk 0:00:25.4]} 32... f6 {[%clk 0:00:55.7]} 33. gxf6
{[%clk 0:00:22.6]} 33... gxf6 {[%clk 0:00:56]} 34. Ng3 {[%clk 0:00:21.9]} 34...
f5 {[%clk 0:00:54.5]} 35. Ne2 {[%clk 0:00:20.8]} 35... b3 {[%clk 0:00:51.9]} 36.
h6 {[%clk 0:00:21.1]} 36... Rxe2 {[%clk 0:00:49.8]} 37. Kxe2 {[%clk 0:00:20.4]}
37... b2 {[%clk 0:00:50]} 38. Bd2 {[%clk 0:00:16]} 38... b1=Q {[%clk 0:00:50.9]}
39. Kf2 {[%clk 0:00:16.9]} 39... Qe4 {[%clk 0:00:51.6]} 40. Be3 {[%clk
0:00:17.4]} 40... f4 {[%clk 0:00:52.1]} 41. Bd2 {[%clk 0:00:17.9]} 41... Kf5
{[%clk 0:00:51.4]} 42. Kf1 {[%clk 0:00:17.5]} 42... Kg4 {[%clk 0:00:52.3]} 43.
Kf2 {[%clk 0:00:17.7]} 43... Qf3+ {[%clk 0:00:50.9]} 44. Kg1 {[%clk 0:00:17.7]}
44... e4 {[%clk 0:00:51.8]} 45. Be1 {[%clk 0:00:17.4]} 45... e3 {[%clk
0:00:51.9]} 46. Kh2 {[%clk 0:00:17.6]} 46... Qe2+ {[%clk 0:00:52.3]} 47. Bf2
{[%clk 0:00:14.6]} 47... exf2 {[%clk 0:00:51.6]} 48. Kh1 {[%clk 0:00:15.5]}
48... f1=Q# {[%clk 0:00:51.9]} 0-1

[Event "*** Titled Tuesday Blitz"]
[Site "Chess.com"]
[Date "2020.04.28"]
[Round "4"]
[White "BelaKis"]
[Black "mamey78"]
[Result "0-1"]
[WhiteElo "2046"]
[BlackElo "2393"]
[TimeControl "180+1"]
[EndTime "10:40:38 PDT"]
[Termination "mamey78 won on time"]

1. Nf3 {[%clk 0:03:00.9]} 1... d5 {[%clk 0:02:58.9]} 2. g3 {[%clk 0:03:01.4]}
2... g6 {[%clk 0:02:58.4]} 3. Bg2 {[%clk 0:03:02.3]} 3... Bg7 {[%clk 0:02:58.5]}
4. O-O {[%clk 0:03:03.2]} 4... e5 {[%clk 0:02:58.4]} 5. d3 {[%clk 0:03:04.1]}
5... Ne7 {[%clk 0:02:57.5]} 6. a3 {[%clk 0:03:02.2]} 6... O-O {[%clk 0:02:57.4]}
7. Nbd2 {[%clk 0:03:02.8]} 7... Nbc6 {[%clk 0:02:55.2]} 8. c4 {[%clk 0:03:02.6]}
8... h6 {[%clk 0:02:48.8]} 9. cxd5 {[%clk 0:02:36.7]} 9... Nxd5 {[%clk
0:02:49.7]} 10. Qc2 {[%clk 0:02:36.4]} 10... Bg4 {[%clk 0:02:43.4]} 11. h3
{[%clk 0:02:35.6]} 11... Be6 {[%clk 0:02:42.8]} 12. Ne4 {[%clk 0:02:34.4]} 12...
Kh7 {[%clk 0:02:29.3]} 13. Bd2 {[%clk 0:02:31.3]} 13... f5 {[%clk 0:02:09.2]}
14. Nc5 {[%clk 0:02:30.6]} 14... Bc8 {[%clk 0:02:09.3]} 15. e4 {[%clk
0:02:03.5]} 15... Nde7 {[%clk 0:02:05.7]} 16. b4 {[%clk 0:01:49]} 16... b6
{[%clk 0:02:01.6]} 17. Nb3 {[%clk 0:01:47.1]} 17... Ba6 {[%clk 0:02:00.8]} 18.
Ne1 {[%clk 0:01:37.3]} 18... f4 {[%clk 0:01:58.3]} 19. Rd1 {[%clk 0:01:23.4]}
19... Qd7 {[%clk 0:01:29.1]} 20. Bc1 {[%clk 0:01:09.5]} 20... Rad8 {[%clk
0:01:26.4]} 21. Bb2 {[%clk 0:00:51.4]} 21... Nd4 {[%clk 0:01:25]} 22. Nxd4
{[%clk 0:00:40.2]} 22... exd4 {[%clk 0:01:25.9]} 23. a4 {[%clk 0:00:40.3]} 23...
g5 {[%clk 0:01:14.2]} 24. b5 {[%clk 0:00:40.2]} 24... Bb7 {[%clk 0:01:13.5]} 25.
Rc1 {[%clk 0:00:39.8]} 25... Rc8 {[%clk 0:01:11.1]} 26. Ba3 {[%clk 0:00:35.2]}
26... c5 {[%clk 0:01:06.4]} 27. bxc6 {[%clk 0:00:28.6]} 27... Rxc6 {[%clk
0:01:06.4]} 28. Qb2 {[%clk 0:00:27.6]} 28... Rfc8 {[%clk 0:01:06]} 29. Nf3
{[%clk 0:00:24.1]} 29... Ng6 {[%clk 0:00:55.9]} 30. Rxc6 {[%clk 0:00:15.2]}
30... Rxc6 {[%clk 0:00:54.4]} 31. Rc1 {[%clk 0:00:15.7]} 31... Rc3 {[%clk
0:00:53.9]} 32. Bb4 {[%clk 0:00:15.3]} 32... Rxd3 {[%clk 0:00:51.6]} 33. Qc2
{[%clk 0:00:12.5]} 33... Bxe4 {[%clk 0:00:50.9]} 34. Qc7 {[%clk 0:00:11.8]}
34... Qxc7 {[%clk 0:00:47.5]} 35. Rxc7 {[%clk 0:00:12.7]} 35... Bxf3 {[%clk
0:00:46.7]} 36. Bxf3 {[%clk 0:00:12.7]} 36... Rxf3 {[%clk 0:00:46.3]} 37. Kg2
{[%clk 0:00:12.4]} 37... Rb3 {[%clk 0:00:45.1]} 38. Bd6 {[%clk 0:00:11.2]} 38...
f3+ {[%clk 0:00:44.3]} 39. Kh2 {[%clk 0:00:10.5]} 39... Rb2 {[%clk 0:00:42.1]}
40. Kg1 {[%clk 0:00:10.4]} 40... Rb1+ {[%clk 0:00:41.8]} 41. Kh2 {[%clk
0:00:09.9]} 41... Rf1 {[%clk 0:00:42]} 42. g4 {[%clk 0:00:10.2]} 42... Rxf2+
{[%clk 0:00:39.5]} 43. Kg3 {[%clk 0:00:10.4]} 43... Rf1 {[%clk 0:00:39.2]} 44.
Rxa7 {[%clk 0:00:09.5]} 44... d3 {[%clk 0:00:38.8]} 45. Rd7 {[%clk 0:00:09.3]}
45... d2 {[%clk 0:00:37.8]} 46. Bf8 {[%clk 0:00:06.7]} 46... d1=Q {[%clk
0:00:35.6]} 47. Rxg7+ {[%clk 0:00:05.8]} 47... Kh8 {[%clk 0:00:34.3]} 48. Rxg6
{[%clk 0:00:05.5]} 48... Rg1+ {[%clk 0:00:33.7]} 0-1